fUST/lending_fUST_20240109
["ID","MTS","AMOUNT","RATE_DAILY","PERIOD"]
[310885450,1704773443730,-500.0,0.0003589,2]
[310885451,1704773443741,-408.19560435,0.0003589,2]
[310885452,1704773443751,-518.76104554,0.0003589,2]
[310885453,1704773443760,-500.0,0.0003589,2]
[310885454,1704773443769,-505.56430784,0.0003589,2]
[310885456,1704773443778,-500.0,0.0003589,2]
[310885457,1704773443787,-528.85115865,0.0003589,2]
[310885458,1704773443796,-500.0,0.0003589,2]
[310885459,1704773443806,-500.0,0.0003589,2]
[310885460,1704773443815,-544.05267978,0.0003589,2]
[310885461,1704773443825,-500.0,0.0003589,2]
[310885463,1704773443834,-226.74535197,0.0003589,2]
[310885464,1704773443844,-226.27349157,0.0003589,2]
[310885465,1704773443854,-500.0,0.0003589,2]
[310885466,1704773443863,-500.0,0.0003589,2]
[310885467,1704773443871,-502.19389587,0.0003589,2]
[310885468,1704773443881,-500.0,0.0003589,2]
[310885469,1704773443891,-500.0,0.0003589,2]
[310885470,1704773443900,-1197.02,0.0003589,2]
[310885471,1704773443909,-500.0,0.0003589,2]
[310885472,1704773443918,-500.0,0.0003589,2]
[310885473,1704773443927,-500.0,0.0003589,2]
[310885474,1704773443936,-500.0,0.0003589,2]
[310885475,1704773443946,-500.0,0.0003589,2]
[310885476,1704773443955,-500.0,0.0003589,2]
[310885477,1704773443964,-2401.08,0.0003589,2]
[310885478,1704773443974,-500.0,0.0003589,2]
[310885479,1704773443983,-500.0,0.0003589,2]
[310885480,1704773443993,-500.0,0.0003589,2]
[310885481,1704773444003,-500.0,0.0003589,2]
[310885482,1704773444014,-500.0,0.0003589,2]
[310885483,1704773444023,-500.0,0.0003589,2]
[310885484,1704773444033,-839.41,0.0003589,2]
[310885485,1704773444043,-5661.72,0.0003589,2]
[310885486,1704773444053,-500.0,0.0003589,2]
[310885487,1704773444062,-3124.1,0.0003589,2]
[310885488,1704773444071,-500.0,0.0003589,2]
[310885489,1704773444080,-537.74750855,0.0003589,2]
[310885490,1704773444090,-2187.6,0.0003589,2]
[310885491,1704773444101,-500.0,0.0003589,2]
[310885492,1704773444110,-500.0,0.0003589,2]
[310885493,1704773444119,-500.0,0.0003589,2]
[310885494,1704773444128,-500.0,0.0003589,2]
[310885495,1704773444138,-674.79,0.0003589,2]
[310885496,1704773444147,-500.0,0.0003589,2]
[310885497,1704773444156,-1316.75,0.0003589,2]
[310885498,1704773444166,-500.0,0.0003589,2]
[310885499,1704773444175,-500.0,0.0003589,2]
[310885500,1704773444184,-514.27,0.0003589,2]
[310885501,1704773444194,-500.0,0.0003589,2]
[310885502,1704773444203,-286.75818751,0.0003589,2]
[310885503,1704773444212,-500.0,0.0003589,2]
[310885504,1704773444223,-362.47033602,0.0003589,2]
[310885505,1704773444232,-500.0,0.0003589,2]
[310885506,1704773444243,-5713.43,0.0003589,2]
[310885507,1704773444253,-501.17826582,0.0003589,2]
[310885508,1704773444264,-500.0,0.0003589,2]
[310885509,1704773444274,-500.0,0.0003589,2]
[310885510,1704773444284,-1680.19,0.0003589,2]
[310885511,1704773444293,-14618.03,0.0003589,2]
[310885512,1704773444303,-500.0,0.0003589,2]
[310885513,1704773444313,-545.93280245,0.0003589,2]
[310885514,1704773444323,-500.0,0.0003589,2]
[310885515,1704773444334,-500.0,0.0003589,2]
[310885516,1704773444343,-500.0,0.0003589,2]
[310885517,1704773444354,-500.0,0.0003589,2]
[310885518,1704773444364,-322.50728838,0.0003589,2]
[310885519,1704773444374,-19338.26134919,0.0003589,2]
[310885520,1704773445013,-500.0,0.00035616,2]
[310885521,1704773445023,-16.850155,0.0003589,2]
[310885522,1704773445204,-2093.65470108,0.0003589,2]
[310885529,1704773446036,-500.6274325,0.00035616,2]
[310885531,1704773446045,-221.85214903,0.0003589,2]
[310885532,1704773446057,-350.98489009,0.0003589,2]
[310885625,1704774639453,-1384.34966329,0.00033627,4]
[310885626,1704774639464,-1415.52920324,0.00033628,2]
[310885627,1704774639475,-8477.3329573,0.00033729,2]
[310885628,1704774639485,-653.01661938,0.0003379,2]
[310885629,1704774639496,-273.403965,0.00033835,2]
[310885630,1704774639506,-1000.0,0.00034,7]
[310885631,1704774639516,-177.645867,0.00034137,2]
[310885632,1704774639527,-529.416256,0.00034521,2]
[310885633,1704774639538,-155.0,0.00034616,2]
[310885634,1704774639548,-188.79007061,0.00035,4]
[310885635,1704774639559,-955.82966935,0.00035,7]
[310885636,1704774639570,-936.98698982,0.00035,14]
[310885637,1704774639582,-3509.9844024,0.00035,2]
[310885638,1704774639594,-365.0,0.00035479,2]
[310885639,1704774639605,-7803.1787706,0.00035605,4]
[310885640,1704774639617,-6452.96007234,0.00035605,4]
[310885641,1704774639628,-3312.9,0.00035606,3]
[310885642,1704774639639,-2760.75,0.00035606,3]
[310885643,1704774639649,-228.98392645,0.00035615,4]
[310885644,1704774639661,-507.33481671,0.00035616,2]
[310885645,1704774639671,-500.0,0.00035616,2]
[310885646,1704774639681,-500.0,0.00035616,2]
[310885647,1704774639693,-500.0,0.00035616,2]
[310885648,1704774639704,-500.0,0.00035616,2]
[310885649,1704774639714,-507.18325789,0.00035616,2]
[310885650,1704774639725,-500.0,0.00035616,2]
[310885651,1704774639736,-500.0,0.00035616,2]
[310885652,1704774639746,-500.0,0.00035616,2]
[310885653,1704774639756,-500.0,0.00035616,2]
[310885654,1704774639767,-1067.46,0.00035616,2]
[310885655,1704774639777,-266.61540679,0.00035616,2]
[310885656,1704774639787,-500.0,0.00035616,2]
[310885657,1704774639812,-500.0,0.00035616,2]
[310885658,1704774639828,-500.0,0.00035616,2]
[310885659,1704774639842,-500.0,0.00035616,2]
[310885660,1704774639856,-500.0,0.00035616,2]
[310885661,1704774639870,-176.67995939,0.00035616,2]
[310885662,1704774639884,-502.10836974,0.00035616,2]
[310885663,1704774639898,-520.07099827,0.00035616,2]
[310885664,1704774639911,-500.0,0.00035616,2]
[310885665,1704774639924,-500.0,0.00035616,2]
[310885666,1704774639936,-270.6920062,0.00035616,2]
[310885667,1704774639948,-500.0,0.00035616,2]
[310885668,1704774639962,-500.0,0.00035616,2]
[310885669,1704774639974,-510.72565044,0.00035616,2]
[310885670,1704774639986,-500.0,0.00035616,2]
[310885671,1704774640001,-500.0,0.00035616,2]
[310885672,1704774640012,-500.0,0.00035616,2]
[310885673,1704774640024,-500.0,0.00035616,2]
[310885674,1704774640034,-500.0,0.00035616,2]
[310885675,1704774640046,-891.71,0.00035616,2]
[310885676,1704774640058,-500.0,0.00035616,2]
[310885677,1704774640070,-500.0,0.00035616,2]
[310885678,1704774640082,-500.0,0.00035616,2]
[310885679,1704774640093,-500.0,0.00035616,2]
[310885680,1704774640106,-500.0,0.00035616,2]
[310885681,1704774640120,-261.85210161,0.00035616,2]
[310885685,1704774640310,-500.0,0.00035616,2]
[310885686,1704774640326,-500.0,0.00035616,2]
[310885687,1704774640336,-313.45672776,0.00035616,2]
[310885688,1704774640346,-1313.26,0.00035616,2]
[310885689,1704774640355,-500.0,0.00035616,2]
[310885690,1704774640365,-500.0,0.00035616,2]
[310885691,1704774640374,-500.0,0.00035616,2]
[310885692,1704774640383,-500.0,0.00035616,2]
[310885693,1704774640393,-326.59424527,0.00035616,2]
[310885694,1704774640402,-500.0,0.00035616,2]
[310885695,1704774640411,-500.0,0.00035616,2]
[310885696,1704774640420,-573.64327184,0.00035616,2]
[310885697,1704774640429,-204.85076196,0.00035616,2]
[310885698,1704774640438,-500.0,0.00035616,2]
[310885699,1704774640447,-564.3,0.00035616,2]
[310885700,1704774640457,-408.19560435,0.00035616,2]
[310885701,1704774640466,-500.0,0.00035616,2]
[310885702,1704774640476,-518.76104554,0.00035616,2]
[310885703,1704774640485,-502.92585725,0.00035616,2]
[310885704,1704774640494,-500.0,0.00035616,2]
[310885705,1704774640503,-500.0,0.00035616,2]
[310885706,1704774640513,-500.0,0.00035616,2]
[310885707,1704774640524,-500.71116039,0.00035616,2]
[310885708,1704774640534,-500.0,0.00035616,2]
[310885709,1704774640543,-500.0,0.00035616,2]
[310885710,1704774640552,-500.0,0.00035616,2]
[310885711,1704774640562,-500.119833,0.00035616,2]
[310885712,1704774640571,-500.0,0.00035616,2]
[310885713,1704774640580,-620.01,0.00035616,2]
[310885714,1704774640590,-500.0,0.00035616,2]
[310885715,1704774640602,-500.0,0.00035616,2]
[310885716,1704774640612,-500.0,0.00035616,2]
[310885717,1704774640622,-500.0,0.00035616,2]
[310885718,1704774640631,-500.0,0.00035616,2]
[310885719,1704774640640,-500.0,0.00035616,2]
[310885720,1704774640650,-500.0,0.00035616,2]
[310885721,1704774640658,-500.0,0.00035616,2]
[310885722,1704774640668,-500.0,0.00035616,2]
[310885723,1704774640677,-500.0,0.00035616,2]
[310885724,1704774640687,-500.0,0.00035616,2]
[310885725,1704774640696,-507.22979566,0.00035616,2]
[310885726,1704774640705,-500.0,0.00035616,2]
[310885727,1704774640715,-500.0,0.00035616,2]
[310885728,1704774640723,-544.05267978,0.00035616,2]
[310885729,1704774640732,-501.0477852,0.00035616,2]
[310885730,1704774640741,-500.0,0.00035616,2]
[310885731,1704774640750,-500.0,0.00035616,2]
[310885732,1704774640759,-602.92967329,0.00035616,2]
[310885733,1704774640769,-500.0,0.00035616,2]
[310885734,1704774640779,-500.0,0.00035616,2]
[310885735,1704774640788,-226.98517404,0.00035616,2]
[310885736,1704774640797,-501.79102858,0.00035616,2]
[310885737,1704774640806,-500.0,0.00035616,2]
[310885738,1704774640815,-500.0,0.00035616,2]
[310885739,1704774640824,-542.29799309,0.00035616,2]
[310885740,1704774640833,-507.07098801,0.00035616,2]
[310885741,1704774640842,-500.0,0.00035616,2]
[310885742,1704774640851,-514.53740638,0.00035616,2]
[310885743,1704774640861,-500.0,0.00035616,2]
[310885744,1704774640871,-500.0,0.00035616,2]
[310885745,1704774640880,-500.0,0.00035616,2]
[310885746,1704774640889,-500.0,0.00035616,2]
[310885747,1704774640899,-500.0,0.00035616,2]
[310885748,1704774640908,-503.96560501,0.00035616,2]
[310885749,1704774640918,-500.0,0.00035616,2]
[310885750,1704774640927,-501.56247906,0.00035616,2]
[310885751,1704774640937,-500.0,0.00035616,2]
[310885752,1704774640946,-500.0,0.00035616,2]
[310885753,1704774640955,-507.61950417,0.00035616,2]
[310885754,1704774640964,-2946.95,0.00035616,2]
[310885755,1704774640973,-500.0,0.00035616,2]
[310885756,1704774640983,-642.49,0.00035616,2]
[310885757,1704774640992,-500.0,0.00035616,2]
[310885758,1704774641002,-500.0,0.00035616,2]
[310885759,1704774641012,-502.01855635,0.00035616,2]
[310885760,1704774641022,-500.0,0.00035616,2]
[310885761,1704774641032,-501.63843087,0.00035616,2]
[310885762,1704774641041,-500.0,0.00035616,2]
[310885763,1704774641052,-514.72347289,0.00035616,2]
[310885764,1704774641063,-500.0,0.00035616,2]
[310885766,1704774641072,-500.0,0.00035616,2]
[310885767,1704774641081,-502.42860123,0.00035616,2]
[310885768,1704774641090,-500.0,0.00035616,2]
[310885769,1704774641099,-500.0,0.00035616,2]
[310885770,1704774641108,-500.0,0.00035616,2]
[310885771,1704774641117,-502.86170615,0.00035616,2]
[310885772,1704774641126,-201.47508818,0.00035616,2]
[310885773,1704774641144,-298.52491182,0.00035616,2]
[310885774,1704774641155,-505.83154421,0.00035616,2]
[310885775,1704774641164,-500.0,0.00035616,2]
[310885776,1704774641173,-500.0,0.00035616,2]
[310885777,1704774641182,-500.0,0.00035616,2]
[310885778,1704774641191,-500.0,0.00035616,2]
[310885779,1704774641200,-813.68,0.00035616,2]
[310885780,1704774641209,-505.30607923,0.00035616,2]
[310885781,1704774641219,-503.21238465,0.00035616,2]
[310885782,1704774641228,-500.0,0.00035616,2]
[310885783,1704774641238,-603.27854241,0.00035616,2]
[310885784,1704774641248,-500.0,0.00035616,2]
[310885785,1704774641257,-632.69516058,0.00035616,2]
[310885786,1704774641266,-500.0,0.00035616,2]
[310885787,1704774641276,-500.0,0.00035616,2]
[310885788,1704774641285,-1630.73,0.00035616,2]
[310885789,1704774641295,-1630.73,0.00035616,2]
[310885790,1704774641306,-1630.73,0.00035616,2]
[310885791,1704774641315,-1630.73,0.00035616,2]
[310885792,1704774641324,-1630.73,0.00035616,2]
[310885793,1704774641334,-1630.73,0.00035616,2]
[310885794,1704774641343,-1630.73,0.00035616,2]
[310885795,1704774641354,-1630.73,0.00035616,2]
[310885796,1704774641364,-1630.73,0.00035616,2]
[310885797,1704774641373,-1685.28,0.00035616,2]
[310885798,1704774641384,-500.0,0.00035616,2]
[310885799,1704774641393,-501.47854896,0.00035616,2]
[310885800,1704774641403,-500.0,0.00035616,2]
[310885801,1704774641413,-500.0,0.00035616,2]
[310885802,1704774641424,-500.0,0.00035616,2]
[310885803,1704774641433,-500.0,0.00035616,2]
[310885804,1704774641443,-500.0,0.00035616,2]
[310885805,1704774641452,-567.32387945,0.00035616,2]
[310885806,1704774641462,-500.0,0.00035616,2]
[310885807,1704774641471,-150.0,0.00035616,2]
[310885808,1704774641480,-305.56124522,0.00035616,2]
[310885809,1704774641490,-322.50728838,0.00035616,2]
[310885810,1704774641499,-532.93123084,0.00035616,2]
[310885811,1704774641509,-246.28439517,0.00035616,2]
[310885812,1704774641522,-500.0,0.00035616,2]
[310885813,1704774641531,-528.49946474,0.00035616,2]
[310885814,1704774641540,-500.0,0.00035616,2]
[310885815,1704774641549,-505.4460893,0.00035616,2]
[310885816,1704774641559,-205.23438726,0.00035616,2]
[310885817,1704774641568,-500.0,0.00035616,2]
[310885818,1704774641579,-1667.86,0.00035616,2]
[310885819,1704774641588,-500.0,0.00035616,2]
[310885820,1704774641598,-500.0,0.00035616,2]
[310885821,1704774641608,-500.0,0.00035616,2]
[310885822,1704774641617,-500.0,0.00035616,2]
[310885823,1704774641627,-500.0,0.00035616,2]
[310885824,1704774641637,-505.56430784,0.00035616,2]
[310885825,1704774641646,-1202.34,0.00035616,2]
[310885826,1704774641656,-500.0,0.00035616,2]
[310885827,1704774641665,-500.0,0.00035616,2]
[310885828,1704774641674,-526.87,0.00035616,2]
[310885829,1704774641683,-500.0,0.00035616,2]
[310885830,1704774641692,-500.0,0.00035616,2]
[310885831,1704774641702,-500.0,0.00035616,2]
[310885832,1704774641712,-424.19971839,0.00035616,2]
[310885833,1704774641723,-501.51872491,0.00035616,2]
[310885834,1704774641733,-408.56538913,0.00035616,2]
[310885835,1704774641744,-500.0,0.00035616,2]
[310885836,1704774641754,-500.0,0.00035616,2]
[310885837,1704774641765,-500.0,0.00035616,2]
[310885838,1704774641775,-500.0,0.00035616,2]
[310885839,1704774641785,-226.27349157,0.00035616,2]
[310885840,1704774641794,-500.0,0.00035616,2]
[310885841,1704774641804,-517.48025698,0.00035616,2]
[310885842,1704774641813,-502.59317857,0.00035616,2]
[310885843,1704774641822,-215.0521032,0.00035616,2]
[310885844,1704774641832,-210.69454058,0.00035616,2]
[310885845,1704774641842,-1147.14,0.00035616,2]
[310885846,1704774641851,-500.0,0.00035616,2]
[310885847,1704774641861,-528.85115865,0.00035616,2]
[310885848,1704774641871,-570.54039986,0.00035616,2]
[310885849,1704774641880,-500.0,0.00035616,2]
[310885850,1704774641889,-501.4790848,0.00035616,2]
[310885851,1704774641898,-500.0,0.00035616,2]
[310885852,1704774641907,-500.0,0.00035616,2]
[310885853,1704774641916,-520.17215198,0.00035616,2]
[310885854,1704774641927,-500.0,0.00035616,2]
[310885855,1704774641937,-500.0,0.00035616,2]
[310885856,1704774641947,-500.0,0.00035616,2]
[310885857,1704774641957,-500.0,0.00035616,2]
[310885858,1704774641966,-500.0,0.00035616,2]
[310885859,1704774641975,-500.0,0.00035616,2]
[310885860,1704774641984,-500.0,0.00035616,2]
[310885861,1704774641993,-5425.81,0.00035616,2]
[310885862,1704774642003,-314.76144495,0.00035616,2]
[310885863,1704774642012,-232.68741591,0.00035616,2]
[310885864,1704774642021,-2301.04,0.00035616,2]
[310885865,1704774642030,-2993.93,0.00035616,2]
[310885866,1704774642039,-1161.19,0.00035616,2]
[310885867,1704774642048,-500.0,0.00035616,2]
[310885868,1704774642057,-500.35757381,0.00035616,2]
[310885869,1704774642066,-500.0,0.00035616,2]
[310885870,1704774642075,-500.0,0.00035616,2]
[310885871,1704774642083,-500.0,0.00035616,2]
[310885872,1704774642092,-500.0,0.00035616,2]
[310885873,1704774642101,-500.0,0.00035616,2]
[310885874,1704774642111,-804.43,0.00035616,2]
[310885875,1704774642120,-501.30944733,0.00035616,2]
[310885876,1704774642129,-356.09894193,0.00035616,2]
[310885877,1704774642140,-366.8039519,0.00035616,2]
[310885878,1704774642149,-500.0,0.00035616,2]
[310885879,1704774642159,-500.0,0.00035616,2]
[310885880,1704774642167,-500.0,0.00035616,2]
[310885881,1704774642176,-286.75818751,0.00035616,2]
[310885882,1704774642185,-167.69414103,0.00035616,2]
[310885883,1704774642195,-303.78797855,0.00035616,2]
[310885884,1704774642205,-500.0,0.00035616,2]
[310885885,1704774642214,-500.0,0.00035616,2]
[310885886,1704774642224,-2096.45,0.00035616,2]
[310885887,1704774642234,-362.47033602,0.00035616,2]
[310885888,1704774642244,-500.0,0.00035616,2]
[310885889,1704774642253,-500.0,0.00035616,2]
[310885890,1704774642262,-500.0,0.00035616,2]
[310885891,1704774642272,-500.0,0.00035616,2]
[310885892,1704774642281,-646.67,0.00035616,2]
[310885893,1704774642291,-500.0,0.00035616,2]
[310885894,1704774642300,-500.0,0.00035616,2]
[310885895,1704774642309,-1282.61,0.00035616,2]
[310885896,1704774642319,-500.0,0.00035616,2]
[310885897,1704774642329,-502.75326566,0.00035616,2]
[310885898,1704774642338,-1637.12,0.00035616,2]
[310885899,1704774642347,-381.12834279,0.00035616,2]
[310885900,1704774642356,-500.0,0.00035616,2]
[310885901,1704774642366,-500.0,0.00035616,2]
[310885902,1704774642375,-500.0,0.00035616,2]
[310885903,1704774642383,-500.0,0.00035616,2]
[310885904,1704774642393,-500.0,0.00035616,2]
[310885905,1704774642402,-545.93280245,0.00035616,2]
[310885906,1704774642411,-500.0,0.00035616,2]
[310885907,1704774642420,-500.0,0.00035616,2]
[310885908,1704774642429,-500.0,0.00035616,5]
[310885909,1704774642440,-505.88505677,0.00035616,2]
[310885910,1704774642449,-628.7334169,0.00035616,2]
[310885911,1704774642459,-513.68,0.00035616,2]
[310885912,1704774642469,-500.0,0.00035616,2]
[310885913,1704774642478,-500.0,0.00035616,2]
[310885914,1704774642488,-45991.27,0.00035616,2]
[310885915,1704774642497,-517.86667267,0.00035616,2]
[310885916,1704774642508,-500.0,0.00035616,2]
[310885917,1704774642520,-1282.72,0.00035616,2]
[310885918,1704774642529,-5475.37,0.00035616,2]
[310885919,1704774642538,-500.0,0.00035616,2]
[310885921,1704774642547,-508.29105618,0.00035616,2]
[310885922,1704774642556,-502.26758404,0.00035616,2]
[310885923,1704774642566,-500.0,0.00035616,2]
[310885924,1704774642575,-1880.09,0.00035616,2]
[310885925,1704774642584,-584.41,0.00035616,2]
[310885926,1704774642593,-1964.46,0.00035616,2]
[310885927,1704774642603,-297.81679147,0.00035616,2]
[310885929,1704774642612,-501.71932076,0.00035616,2]
[310885930,1704774642621,-500.0,0.00035616,2]
[310885932,1704774642631,-2342.66,0.00035616,2]
[310885934,1704774642640,-176.84588182,0.00035616,2]
[310885935,1704774642649,-500.0,0.00035616,2]
[310885937,1704774642657,-500.0,0.00035616,2]
[310885938,1704774642666,-500.0,0.00035616,2]
[310885939,1704774642675,-500.0,0.00035616,2]
[310885940,1704774642685,-500.0,0.00035616,2]
[310885941,1704774642694,-500.0,0.00035616,2]
[310885943,1704774642703,-14008.95,0.00035616,2]
[310885945,1704774642712,-500.0,0.00035616,2]
[310885947,1704774642721,-500.0,0.00035616,2]
[310885949,1704774642730,-500.0,0.00035616,2]
[310885951,1704774642740,-500.0,0.00035616,2]
[310885953,1704774642749,-500.0,0.00035616,2]
[310885955,1704774642758,-500.0,0.00035616,2]
[310885957,1704774642767,-1000.0,0.00035616,2]
[310885959,1704774642777,-210.15599459,0.00035616,2]
[310885961,1704774642786,-516.51757613,0.00035616,2]
[310885963,1704774642796,-500.0,0.00035616,2]
[310885965,1704774642805,-500.0,0.00035616,2]
[310885967,1704774642814,-501.43481431,0.00035616,2]
[310885969,1704774642823,-1637.37,0.00035616,2]
[310885971,1704774642832,-617.72,0.00035616,2]
[310885972,1704774642841,-500.0,0.00035616,2]
[310885973,1704774642850,-480.60904394,0.00035616,2]
[310885974,1704774642859,-1183.2,0.00035616,2]
[310885975,1704774642868,-150.2032635,0.00035616,7]
[310885976,1704774642877,-500.0,0.00035616,2]
[310885977,1704774642886,-500.0,0.00035616,2]
[310885978,1704774642895,-500.0,0.00035616,2]
[310885979,1704774642904,-500.0,0.00035616,2]
[310885980,1704774642913,-1716.2,0.00035616,2]
[310885981,1704774642923,-500.0,0.00035616,2]
[310885982,1704774642933,-563.62061951,0.00035616,2]
[310885983,1704774642942,-500.0,0.00035616,2]
[310885984,1704774642950,-604.73200117,0.00035616,2]
[310885985,1704774642960,-484.95822074,0.00035616,2]
[310885986,1704774642969,-500.0,0.00035616,2]
[310885987,1704774642978,-500.0,0.00035616,2]
[310885988,1704774642987,-500.0,0.00035616,2]
[310885989,1704774642996,-500.0,0.00035616,2]
[310885990,1704774643005,-500.0,0.00035616,2]
[310885991,1704774643014,-946.94,0.00035616,2]
[310885992,1704774643023,-500.0,0.00035616,2]
[310885993,1704774643033,-500.0,0.00035616,2]
[310885994,1704774643044,-500.0,0.00035616,2]
[310885995,1704774643054,-164.480547,0.00035616,120]
[310885996,1704774643063,-1630.73,0.00035789,2]
[310885997,1704774643073,-30848.36745887,0.0003579,3]
[310885998,1704774643082,-529.416256,0.00035798,2]
[310885999,1704774643090,-2713.55973559,0.000358,12]
[310886000,1704774643099,-1630.73,0.00035888,2]
[310886001,1704774643108,-518.46226849,0.00035889,4]
[310886002,1704774643118,-1630.73,0.00035889,2]
[310886003,1704774643127,-1630.73,0.00035889,2]
[310886004,1704774643136,-1630.73,0.00035889,2]
[310886005,1704774643147,-1630.73,0.00035889,2]
[310886006,1704774643157,-1630.73,0.00035889,2]
[310886007,1704774643168,-231.2255281,0.0003589,3]
[310886008,1704774643177,-1806.39501228,0.0003589,4]
[310886009,1704774643187,-200.0,0.0003589,2]
[310886010,1704774643198,-282.98854922,0.0003589,3]
[310886011,1704774643207,-504.94365407,0.0003589,2]
[310886012,1704774643216,-649.46848965,0.0003589,4]
[310886013,1704774643225,-791.33334972,0.0003589,2]
[310886014,1704774643234,-566.95206653,0.0003589,2]
[310886015,1704774643244,-1987.79693102,0.0003589,4]
[310886016,1704774643253,-500.0,0.0003589,2]
[310886017,1704774643262,-500.0,0.0003589,2]
[310886018,1704774643271,-500.0,0.0003589,2]
[310886019,1704774643280,-500.0,0.0003589,2]
[310886020,1704774643289,-500.0,0.0003589,2]
[310886021,1704774643298,-357.58884199,0.0003589,2]
[310886022,1704774643307,-500.0,0.0003589,2]
[310886023,1704774643315,-1067.46,0.0003589,2]
[310886024,1704774643324,-500.0,0.0003589,2]
[310886025,1704774643333,-500.0,0.0003589,2]
[310886026,1704774643342,-500.0,0.0003589,2]
[310886027,1704774643351,-500.0,0.0003589,2]
[310886028,1704774643360,-500.0,0.0003589,2]
[310886029,1704774643370,-500.0,0.0003589,2]
[310886030,1704774643379,-500.0,0.0003589,2]
[310886031,1704774643388,-500.0,0.0003589,2]
[310886032,1704774643397,-500.0,0.0003589,2]
[310886033,1704774643407,-500.0,0.0003589,2]
[310886034,1704774643417,-500.0,0.0003589,2]
[310886035,1704774643428,-500.0,0.0003589,2]
[310886036,1704774643550,-500.0,0.0003589,2]
[310886037,1704774643559,-506.60874421,0.0003589,2]
[310886038,1704774643569,-891.71,0.0003589,2]
[310886040,1704774643578,-500.0,0.0003589,2]
[310886042,1704774643587,-500.0,0.0003589,2]
[310886044,1704774643596,-500.0,0.0003589,2]
[310886046,1704774643605,-500.0,0.0003589,2]
[310886048,1704774643614,-1313.26,0.0003589,2]
[310886050,1704774643625,-552.78766617,0.0003589,2]
[310886051,1704774643634,-500.0,0.0003589,2]
[310886052,1704774643644,-500.0,0.0003589,2]
[310886053,1704774643654,-626.10530072,0.0003589,2]
[310886054,1704774643664,-500.0,0.0003589,2]
[310886055,1704774643673,-500.0,0.0003589,2]
[310886056,1704774643683,-564.3,0.0003589,2]
[310886057,1704774643693,-500.0,0.0003589,2]
[310886058,1704774643702,-500.0,0.0003589,2]
[310886059,1704774643712,-500.0,0.0003589,2]
[310886060,1704774643721,-500.0,0.0003589,2]
[310886061,1704774643731,-500.0,0.0003589,2]
[310886062,1704774643740,-500.0,0.0003589,2]
[310886063,1704774643749,-500.0,0.0003589,2]
[310886064,1704774643758,-500.0,0.0003589,2]
[310886065,1704774643767,-620.01,0.0003589,2]
[310886066,1704774643777,-500.0,0.0003589,2]
[310886067,1704774643786,-500.0,0.0003589,2]
[310886068,1704774643795,-500.0,0.0003589,2]
[310886069,1704774643804,-500.0,0.0003589,2]
[310886070,1704774643815,-500.0,0.0003589,2]
[310886071,1704774643824,-500.0,0.0003589,2]
[310886072,1704774643833,-453.87475052,0.0003589,2]
[310886074,1704774643842,-500.0,0.0003589,2]
[310886076,1704774643851,-500.0,0.0003589,2]
[310886078,1704774643860,-500.0,0.0003589,2]
[310886079,1704774643870,-500.0,0.0003589,2]
[310886082,1704774643879,-2946.95,0.0003589,2]
[310886083,1704774643889,-500.0,0.0003589,2]
[310886084,1704774643898,-500.0,0.0003589,2]
[310886085,1704774643907,-500.0,0.0003589,2]